fUSD/lending_fUSD_20260620
["ID","MTS","AMOUNT","RATE_DAILY","PERIOD"]
[425829038,1781952639000,-151.0,0.000223,2]
[425829036,1781952639000,-500.0,0.000223,2]
[425829043,1781952639000,-151.0,0.000223,2]
[425829045,1781952639000,-152.0,0.000223,2]
[425829047,1781952639000,-152.0,0.000223,2]
[425829046,1781952639000,-151.0,0.000223,2]
[425829025,1781952639000,-152.0,0.000223,2]
[425829048,1781952639000,-151.0,0.000223,2]
[425829068,1781952639000,-663.62,0.00022466,2]
[425829054,1781952639000,-151.0,0.000223,2]
[425829059,1781952639000,-151.0,0.000223,2]
[425829063,1781952639000,-151.0,0.0002241,2]
[425829050,1781952639000,-151.0,0.000223,2]
[425829061,1781952639000,-151.0,0.00022355,2]
[425829057,1781952639000,-151.0,0.000223,2]
[425829052,1781952639000,-151.0,0.000223,2]
[425828972,1781952639000,-152.0,0.000223,2]
[425829072,1781952639000,-151.0,0.0002252,2]
[425829074,1781952639000,-150.0,0.0002254,2]
[425829065,1781952639000,-151.0,0.00022465,2]
[425829021,1781952639000,-151.0,0.000223,2]
[425829069,1781952639000,-286.0,0.000225,7]
[425829015,1781952639000,-152.0,0.000223,2]
[425829017,1781952639000,-151.0,0.000223,2]
[425828970,1781952639000,-151.0,0.000223,2]
[425828964,1781952639000,-152.0,0.000223,2]
[425828968,1781952639000,-500.0,0.000223,2]
[425828974,1781952639000,-500.0,0.000223,2]
[425828976,1781952639000,-151.0,0.000223,2]
[425828978,1781952639000,-151.0,0.000223,2]
[425828981,1781952639000,-500.0,0.000223,2]
[425828983,1781952639000,-152.0,0.000223,2]
[425828987,1781952639000,-151.0,0.000223,2]
[425828985,1781952639000,-500.0,0.000223,2]
[425828995,1781952639000,-500.0,0.000223,2]
[425828962,1781952639000,-151.0,0.000223,2]
[425828993,1781952639000,-152.0,0.000223,2]
[425828991,1781952639000,-500.0,0.000223,2]
[425829006,1781952639000,-151.0,0.000223,2]
[425829019,1781952639000,-500.0,0.000223,2]
[425829010,1781952639000,-151.0,0.000223,2]
[425829023,1781952639000,-500.0,0.000223,2]
[425829013,1781952639000,-500.0,0.000223,2]
[425829004,1781952639000,-152.0,0.000223,2]
[425828989,1781952639000,-151.0,0.000223,2]
[425828999,1781952639000,-151.0,0.000223,2]
[425828997,1781952639000,-151.0,0.000223,2]
[425829002,1781952639000,-500.0,0.000223,2]
[425829008,1781952639000,-500.0,0.000223,2]
[425829134,1781952640000,-175.263023,0.00023068,2]
[425829151,1781952640000,-151.0,0.00023396,2]
[425829121,1781952640000,-219.0,0.00023,2]
[425829119,1781952640000,-365.0,0.00023,2]
[425829125,1781952640000,-166.0,0.00023,2]
[425829123,1781952640000,-172.0,0.00023,2]
[425829127,1781952640000,-219.045354,0.00023065,7]
[425829142,1781952640000,-151.0,0.00023122,2]
[425829149,1781952640000,-200.0,0.00023396,2]
[425829144,1781952640000,-166.66,0.0002313,30]
[425829161,1781952640000,-231.2793641,0.00023427,2]
[425829163,1781952640000,-500.0,0.00023429,5]
[425829153,1781952640000,-187.78006524,0.00023396,2]
[425829159,1781952640000,-256.0661769,0.00023427,2]
[425829155,1781952640000,-175.1752968,0.00023396,2]
[425829157,1781952640000,-151.0,0.00023396,2]
[425829165,1781952640000,-1798.1017974,0.00023584,2]
[425829172,1781952640000,-219.045354,0.00023658,7]
[425829187,1781952640000,-219.0,0.00024,2]
[425829180,1781952640000,-175.1752968,0.00023944,2]
[425829136,1781952640000,-175.263023,0.00023068,2]
[425829147,1781952640000,-150.0,0.00023151,2]
[425829129,1781952640000,-219.045354,0.00023065,7]
[425829096,1781952640000,-151.0,0.00022848,2]
[425829132,1781952640000,-175.263023,0.00023068,2]
[425829080,1781952640000,-151.0,0.00022575,2]
[425829078,1781952640000,-151.0,0.00022574,2]
[425829088,1781952640000,-219.045354,0.00022698,7]
[425829084,1781952640000,-151.0,0.00022685,2]
[425829082,1781952640000,-151.0,0.0002263,2]
[425829076,1781952640000,-500.0,0.00022571,4]
[425829090,1781952640000,-151.0,0.0002274,2]
[425829086,1781952640000,-166.66,0.0002269,30]
[425829094,1781952640000,-200.0,0.00022848,2]
[425829092,1781952640000,-151.0,0.00022795,2]
[425829107,1781952640000,-175.263023,0.00022968,2]
[425829111,1781952640000,-175.263023,0.00022968,2]
[425829109,1781952640000,-175.263023,0.00022968,2]
[425829098,1781952640000,-181.08010149,0.00022848,2]
[425829176,1781952640000,-161.31855254,0.00023669,2]
[425829113,1781952640000,-175.263023,0.00022968,2]
[425829103,1781952640000,-151.0,0.00022848,2]
[425829101,1781952640000,-175.1752968,0.00022848,2]
[425829105,1781952640000,-151.0,0.00022849,2]
[425829117,1781952640000,-277.0,0.00023,2]
[425829138,1781952640000,-175.263027,0.00023068,2]
[425829140,1781952640000,-29364.9018,0.00023068,2]
[425829170,1781952640000,-17410.7910277,0.00023584,2]
[425829115,1781952640000,-2500.0,0.00022968,2]
[425829189,1781952640000,-172.0,0.00024,2]
[425829251,1781952640000,-1046.51103836,0.000249,2]
[425829253,1781952640000,-219.045354,0.00024997,7]
[425829255,1781952640000,-500.0,0.00024999,2]
[425829239,1781952640000,-160.91,0.00024658,2]
[425829259,1781952640000,-500.0,0.00024999,2]
[425829257,1781952640000,-500.0,0.00024999,2]
[425829242,1781952640000,-201.0,0.00024832,10]
[425829246,1781952640000,-160.0,0.00024856,2]
[425829248,1781952640000,-160.0,0.00024857,2]
[425829244,1781952640000,-150.0,0.0002485,2]
[425829237,1781952640000,-157.01,0.00024658,2]
[425829261,1781952640000,-500.0,0.00024999,2]
[425829268,1781952640000,-500.0,0.00024999,2]
[425829266,1781952640000,-500.0,0.00024999,2]
[425829280,1781952640000,-16466.09680299,0.00025,5]
[425829272,1781952640000,-6217.03682596,0.00025,5]
[425829278,1781952640000,-34997.34790618,0.00025,5]
[425829270,1781952640000,-1415.0,0.00025,5]
[425829289,1781952640000,-773.1519251,0.00025,5]
[425829283,1781952640000,-7192.40718956,0.00025,5]
[425829286,1781952640000,-790.18371639,0.00025,5]
[425829174,1781952640000,-150.0,0.00023667,2]
[425829264,1781952640000,-500.0,0.00024999,2]
[425829224,1781952640000,-350.0,0.0002451,5]
[425829293,1781952640000,-1379.15588592,0.00025,5]
[425829221,1781952640000,-199.228905,0.000245,120]
[425829182,1781952640000,-277.0,0.00024,2]
[425829168,1781952640000,-418.5750509,0.00023584,2]
[425829184,1781952640000,-365.0,0.00024,2]
[425829178,1781952640000,-194.72792766,0.00023944,2]
[425829191,1781952640000,-166.0,0.00024,2]
[425829193,1781952640000,-398.457809,0.00024142,120]
[425829197,1781952640000,-500.0,0.00024286,6]
[425829195,1781952640000,-227.690177,0.00024143,14]
[425829202,1781952640000,-227.690177,0.00024353,120]
[425829204,1781952640000,-419.419252,0.00024402,120]
[425829200,1781952640000,-151.0,0.00024324,2]
[425829211,1781952640000,-175.1752968,0.00024492,2]
[425829206,1781952640000,-481.391419,0.00024402,120]
[425829219,1781952640000,-218.459494,0.000245,14]
[425829234,1781952640000,-1000.0,0.00024658,2]
[425829228,1781952640000,-182.0,0.0002461,10]
[425829217,1781952640000,-762.672822,0.000245,120]
[425829232,1781952640000,-150.0,0.00024658,2]
[425829230,1781952640000,-3534.56,0.00024636,7]
[425829226,1781952640000,-200.0,0.00024598,2]
[425829208,1781952640000,-201.93286098,0.00024492,2]
[425829213,1781952640000,-500.0,0.00024499,2]
[425829215,1781952640000,-218.459494,0.000245,120]
[425829763,1781952646000,-91.540459,0.00024143,120]
[425829761,1781952646000,-213.459541,0.00024019,14]
[425829759,1781952646000,-500.0,0.00021239,3]
[425829772,1781952848000,-443.81867107,0.00012699,3]
[425829773,1781952864000,-443.81867107,0.00012699,3]
[425829774,1781952881000,-1182.19,0.00012699,3]
[425829775,1781952897000,-1182.19,0.00012699,3]
[425829776,1781952914000,-300.0,0.000114,2]
[425829777,1781952965000,-561.66244542,0.00012698,2]
[425829781,1781953019000,-1182.19,0.00012699,3]
[425829783,1781953038000,-1182.19,0.00012699,3]
[425829784,1781953053000,-295.3249981,0.00011628,7]
[425829786,1781953105000,-442.98749717,0.00012312,7]
[425829787,1781953327000,-150.0,0.0001197,2]
[425829788,1781953381000,-379.93488803,0.00012334,2]
[425829789,1781953435000,-312.89858896,0.00011899,2]
[425829790,1781953454000,-200.39336666,0.00011899,2]
[425829791,1781953508000,-23.7824474,0.00011899,2]
[425829792,1781953562000,-204.40919059,0.00011908,2]
[425829793,1781953571000,418.83883816,0.00021944,30]
[425829794,1781953576000,220.286399,0.00022224,120]
[425829795,1781953615000,-352.38516641,0.00011917,2]
[425829796,1781953669000,-500.0,0.00011972,2]
[425829797,1781953686000,-150.0,0.00011972,2]
[425829798,1781953739000,-228.063136,0.00011972,2]
[425829799,1781953745000,-150.11,0.00011972,2]
[425829801,1781953745000,-150.0,0.00012219,2]
[425829802,1781953745000,-286.0,0.00012338,2]
[425829800,1781953745000,-150.0,0.00012099,2]
[425829803,1781953754000,483.2746,0.00012337,2]
[425829809,1781953831000,-166.66,0.00011444,2]
[425829812,1781953831000,-166.66,0.00011925,2]
[425829813,1781953831000,-150.0,0.00011933,2]
[425829814,1781953831000,-228.7345136,0.00012137,7]
[425829811,1781953831000,-190.95,0.00011815,2]
[425829810,1781953831000,-166.66,0.00011684,2]
[425829815,1781953831000,-166.66,0.00012166,2]
[425829816,1781953831000,-24.34125297,0.00012336,2]
[425829818,1781953831000,-16.7254,0.00012337,2]
[425829817,1781953831000,-275.65874703,0.00012336,2]
[425829819,1781953831000,-500.0,0.00012337,2]
[425829821,1781953831000,-500.0,0.00012337,2]
[425829820,1781953831000,-500.0,0.00012337,2]
[425829822,1781953831000,-500.0,0.00012337,2]
[425829824,1781953831000,-500.0,0.00012337,2]
[425829835,1781953831000,-499.99999999,0.00012337,2]
[425829825,1781953831000,-500.0,0.00012337,2]
[425829838,1781953831000,-166.66,0.00012407,2]
[425829839,1781953831000,-963.1,0.00012616,2]
[425829837,1781953831000,-313.59,0.00012337,2]
[425829823,1781953831000,-163.53320937,0.00012337,2]
[425829836,1781953831000,-165.9,0.00012337,2]
[425829833,1781953831000,-500.0,0.00012337,2]
[425829834,1781953831000,-500.0,0.00012337,2]
[425829831,1781953831000,-500.0,0.00012337,2]
[425829827,1781953831000,-500.0,0.00012337,2]
[425829829,1781953831000,-500.0,0.00012337,2]
[425829828,1781953831000,-500.0,0.00012337,2]
[425829830,1781953831000,-500.0,0.00012337,2]
[425829826,1781953831000,-500.0,0.00012337,2]
[425829832,1781953831000,-500.0,0.00012337,2]
[425829845,1781953832000,-7844.92018669,0.00012708,3]
[425829841,1781953832000,-5011.238,0.00012699,2]
[425829842,1781953832000,-297.183,0.00012699,2]
[425829843,1781953832000,-19383.60265786,0.00012699,3]
[425829844,1781953832000,-150.0,0.00012707,2]
[425829840,1781953832000,-166.66,0.00012648,2]
[425829852,1781953837000,-171.767233,0.00012336,2]
[425829854,1781953837000,-43.70237661,0.00012336,2]
[425829857,1781953837000,-1921.80412804,0.00012708,3]
[425829853,1781953837000,-232.83459038,0.00012336,2]
[425829855,1781953837000,-311.42149793,0.00012336,2]
[425829856,1781953837000,-38.03983726,0.00012336,2]
[425829880,1781953838000,-500.0,0.00012925,2]
[425829884,1781953838000,-208.2,0.00012925,2]
[425829889,1781953838000,-208.2,0.00012925,2]
[425829891,1781953838000,-208.2,0.00012925,2]
[425829895,1781953838000,-208.2,0.00012925,2]
[425829893,1781953838000,-208.2,0.00012925,2]
[425829897,1781953838000,-208.2,0.00012925,2]
[425829900,1781953838000,-208.2,0.00012925,2]
[425829902,1781953838000,-193.0,0.00013099,2]
[425829915,1781953838000,-294.0,0.00013183,2]
[425829882,1781953838000,-208.2,0.00012925,2]
[425829905,1781953838000,-300.0,0.00013109,2]
[425829906,1781953838000,-500.0,0.00013169,2]
[425829907,1781953838000,-250.0,0.00013169,2]
[425829912,1781953838000,-300.0,0.00013169,2]
[425829914,1781953838000,-250.0,0.00013169,2]
[425829917,1781953838000,-200.0,0.00014192,2]
[425829918,1781953838000,-963.1,0.00014193,2]
[425829916,1781953838000,-420.0,0.00013538,2]
[425829904,1781953838000,-500.0,0.00013109,2]
[425829877,1781953838000,-25000.0,0.00012884,3]
[425829866,1781953838000,-25000.0,0.00012805,3]
[425829878,1781953838000,-25000.0,0.00012893,3]
[425829925,1781953838000,-780.16326477,0.00014936,2]
[425829858,1781953838000,-15233.27568527,0.00012708,3]
[425829860,1781953838000,-25000.0,0.00012726,3]
[425829859,1781953838000,-25000.0,0.00012717,3]
[425829861,1781953838000,-23466.70126912,0.00012749,2]
[425829862,1781953838000,-25000.0,0.0001277,3]
[425829863,1781953838000,-25000.0,0.00012778,3]
[425829864,1781953838000,-25000.0,0.00012787,3]
[425829865,1781953838000,-25000.0,0.00012796,3]
[425829868,1781953838000,-25000.0,0.00012814,3]
[425829867,1781953838000,-178.0,0.00012805,2]
[425829869,1781953838000,-25000.0,0.00012822,3]
[425829870,1781953838000,-25000.0,0.00012831,3]
[425829872,1781953838000,-25000.0,0.00012849,3]
[425829871,1781953838000,-25000.0,0.0001284,3]
[425829874,1781953838000,-25000.0,0.00012866,3]
[425829873,1781953838000,-25000.0,0.00012858,3]
[425829876,1781953838000,-179.39769902,0.00012884,2]
[425829875,1781953838000,-25000.0,0.00012875,3]
[425829887,1781953838000,-208.2,0.00012925,2]
[425829923,1781953838000,-303.89170776,0.00014909,2]
[425829961,1781953838000,-500.0,0.00016164,2]
[425829922,1781953838000,-2100.0,0.000149,5]
[425829948,1781953838000,-300.0,0.00015799,2]
[425829947,1781953838000,-300.0,0.00015799,2]
[425829945,1781953838000,-963.1,0.0001577,2]
[425829952,1781953838000,-153.61758556,0.00016,2]
[425829953,1781953838000,-1555.5,0.00016102,2]
[425829954,1781953838000,-151.49636419,0.00016164,2]
[425829950,1781953838000,-3200.0,0.000159,5]
[425829951,1781953838000,-246.1041651,0.00015911,7]
[425829958,1781953838000,-500.0,0.00016164,2]
[425829960,1781953838000,-500.0,0.00016164,2]
[425829956,1781953838000,-500.0,0.00016164,2]
[425829957,1781953838000,-500.0,0.00016164,2]
[425829959,1781953838000,-500.0,0.00016164,2]
[425829962,1781953838000,-277.72991782,0.00016164,2]
[425829964,1781953838000,-500.0,0.00016164,2]
[425829966,1781953838000,-500.0,0.00016164,2]
[425829965,1781953838000,-500.0,0.00016164,2]
[425829920,1781953838000,-1000.0,0.000148,5]
[425829963,1781953838000,-363.81867107,0.00016164,2]
[425829949,1781953838000,-611.95110109,0.000158,5]
[425829944,1781953838000,-1500.0,0.00015554,2]
[425829955,1781953838000,-500.0,0.00016164,2]
[425829939,1781953838000,-247.81052588,0.00014999,2]
[425829919,1781953838000,-23466.70126906,0.00014547,2]
[425829921,1781953838000,-7350.0,0.000149,2]
[425829946,1781953838000,-2719.35,0.00015775,2]
[425829924,1781953838000,-608.41738032,0.00014909,2]
[425829931,1781953838000,-500.0,0.00014999,2]
[425829927,1781953838000,-358.82,0.00014985,2]
[425829930,1781953838000,-500.0,0.00014999,2]
[425829929,1781953838000,-500.0,0.00014999,2]
[425829928,1781953838000,-503.61749186,0.0001499,2]
[425829932,1781953838000,-500.0,0.00014999,2]
[425829926,1781953838000,-1037.84864388,0.00014968,2]
[425829933,1781953838000,-500.0,0.00014999,2]
[425829935,1781953838000,-500.0,0.00014999,2]
[425829936,1781953838000,-500.0,0.00014999,2]
[425829938,1781953838000,-500.0,0.00014999,2]
[425829937,1781953838000,-500.0,0.00014999,2]
[425829940,1781953838000,-300.0,0.00014999,2]
[425829934,1781953838000,-500.0,0.00014999,2]
[425829942,1781953838000,-1412900.91865975,0.00015,2]
[425829941,1781953838000,-300.0,0.00014999,2]
[425829943,1781953838000,-150.0,0.00015068,2]
[425829995,1781953839000,-500.0,0.00016657,2]
[425830005,1781953839000,-1189.0,0.00017937,5]
[425830002,1781953839000,-1672.7364795,0.00017198,2]
[425830003,1781953839000,-963.1,0.00017347,2]
[425830001,1781953839000,-188.36369057,0.00017175,10]
[425830000,1781953839000,-500.0,0.00017175,10]
[425829999,1781953839000,-199.5,0.00016972,2]
[425830004,1781953839000,-1734.62772924,0.00017746,2]
[425829997,1781953839000,-618.78572313,0.00016657,2]
[425829998,1781953839000,-284.32,0.0001674,7]
[425830006,1781953839000,-283.27,0.00018,2]
[425830014,1781953839000,-963.1,0.00018924,2]
[425830008,1781953839000,-1798.80895522,0.00018294,2]
[425830007,1781953839000,-23466.70126906,0.00018143,2]
[425830011,1781953839000,-344.18184529,0.00018545,10]
[425830010,1781953839000,-189.8,0.0001841,2]
[425830013,1781953839000,-1865.36488656,0.00018842,2]
[425830017,1781953839000,-500.0,0.00019153,2]
[425830012,1781953839000,-558.02915957,0.00018731,10]
[425830015,1781953839000,-151.0,0.00019,2]
[425830016,1781953839000,-166.1,0.00019052,2]
[425830018,1781953839000,-205.02,0.00019339,2]
[425829994,1781953839000,-202.6298933,0.00016657,2]
[425830020,1781953839000,-1783.53,0.00019671,2]
[425830009,1781953839000,-303.89170774,0.00018389,2]
[425829996,1781953839000,-500.0,0.00016657,2]
[425829972,1781953839000,-500.0,0.00016164,2]
[425829993,1781953839000,-500.0,0.00016657,2]
[425830019,1781953839000,-1934.38338736,0.0001939,2]
[425829967,1781953839000,-500.0,0.00016164,2]
[425829968,1781953839000,-500.0,0.00016164,2]
[425829970,1781953839000,-500.0,0.00016164,2]
[425829971,1781953839000,-500.0,0.00016164,2]
[425829974,1781953839000,-500.0,0.00016164,2]
[425829973,1781953839000,-500.0,0.00016164,2]
[425829969,1781953839000,-500.0,0.00016164,2]
[425829975,1781953839000,-500.0,0.00016164,2]
[425829978,1781953839000,-500.0,0.00016164,2]
[425829977,1781953839000,-500.0,0.00016164,2]
[425829976,1781953839000,-500.0,0.00016164,2]
[425829979,1781953839000,-500.0,0.00016164,2]
[425829981,1781953839000,-404.0,0.00016164,2]
[425829980,1781953839000,-500.0,0.00016164,2]
[425829982,1781953839000,-446.53,0.00016317,2]
[425829984,1781953839000,-500.0,0.0001635,2]
[425829983,1781953839000,-23466.70126906,0.00016345,2]
[425829988,1781953839000,-1613.0535,0.0001665,2]
[425829986,1781953839000,-500.0,0.00016353,10]
[425829985,1781953839000,-166.1,0.00016353,2]
[425829987,1781953839000,-188.36369057,0.00016353,10]
[425829990,1781953839000,-500.0,0.00016657,2]
[425829992,1781953839000,-500.0,0.00016657,2]
[425829991,1781953839000,-500.0,0.00016657,2]
[425829989,1781953839000,-500.0,0.00016657,2]
[425830021,1781953839000,-160.0,0.00019698,2]
[425830043,1781953839000,-151.0,0.00020486,2]
[425830022,1781953839000,-218.548446,0.00019698,2]
[425830056,1781953839000,-151.0,0.00020486,2]
[425830053,1781953839000,-151.0,0.00020486,2]
[425830054,1781953839000,-151.0,0.00020486,2]
[425830057,1781953839000,-578.20924308,0.00020486,2]
[425830058,1781953839000,-151.0,0.00020486,2]
[425830062,1781953839000,-151.0,0.00020486,2]
[425830060,1781953839000,-151.0,0.00020486,2]
[425830063,1781953839000,-151.0,0.00020486,2]
[425830064,1781953839000,-721.12765534,0.00020486,2]
[425830065,1781953839000,-151.0,0.00020486,2]
[425830066,1781953839000,-151.0,0.00020486,2]
[425830068,1781953839000,-151.0,0.00020486,2]
[425830067,1781953839000,-151.0,0.00020486,2]
[425830069,1781953839000,-151.0,0.00020486,2]
[425830072,1781953839000,-154.56643835,0.00020486,2]
[425830071,1781953839000,-152.0,0.00020486,2]
[425830073,1781953839000,-500.0,0.00020486,2]
[425830074,1781953839000,-500.0,0.00020486,2]
[425830077,1781953839000,-152.0,0.00020486,2]
[425830076,1781953839000,-151.0,0.00020486,2]
[425830075,1781953839000,-151.0,0.00020486,2]
[425830078,1781953839000,-500.0,0.00020486,2]
[425830080,1781953839000,-151.0,0.00020486,2]
[425830079,1781953839000,-500.0,0.00020486,2]
[425830023,1781953839000,-277.096893,0.00019698,2]
[425830055,1781953839000,-174.61919141,0.00020486,2]
[425830051,1781953839000,-151.0,0.00020486,2]
[425830070,1781953839000,-2080.17592889,0.00020486,2]
[425830049,1781953839000,-151.0,0.00020486,2]
[425830024,1781953839000,-186.09459873,0.000199,2]
[425830050,1781953839000,-151.0,0.00020486,2]
[425830027,1781953839000,-169.0,0.0002,2]
[425830025,1781953839000,-2005.9555727,0.00019938,2]
[425830026,1781953839000,-23466.70126906,0.00019941,2]
[425830028,1781953839000,-158.0,0.0002,2]
[425830029,1781953839000,-509.34425639,0.0002,10]
[425830030,1781953839000,-183.76953182,0.0002,2]
[425830031,1781953839000,-24146.36,0.0002,2]
[425830032,1781953839000,-15679.09,0.0002,2]
[425830033,1781953839000,-151.0,0.0002,2]
[425830036,1781953839000,-268.26672,0.00020076,2]
[425830037,1781953839000,-150.0,0.00020246,2]
[425830034,1781953839000,-420.0,0.0002,2]
[425830048,1781953839000,-151.0,0.00020486,2]
[425830052,1781953839000,-151.0,0.00020486,2]
[425830040,1781953839000,-150.0,0.00020246,2]
[425830047,1781953839000,-151.0,0.00020486,2]
[425830046,1781953839000,-151.0,0.00020486,2]
[425830045,1781953839000,-200.0,0.00020486,2]
[425830044,1781953839000,-151.0,0.00020486,2]
[425830039,1781953839000,-150.0,0.00020246,2]
[425830035,1781953839000,-504.0,0.0002,2]
[425830041,1781953839000,-279.73608303,0.00020246,2]
[425830038,1781953839000,-150.0,0.00020246,2]
[425830042,1781953839000,-189.8,0.00020381,2]
[425830118,1781953840000,-150.0,0.0002058,2]
[425830121,1781953840000,-150.0,0.0002058,2]
[425830120,1781953840000,-150.0,0.0002058,2]
[425830119,1781953840000,-150.0,0.0002058,2]
[425830117,1781953840000,-151.0,0.00020541,2]
[425830113,1781953840000,-152.0,0.00020486,2]
[425830116,1781953840000,-500.0,0.00020486,2]
[425830115,1781953840000,-151.0,0.00020486,2]
[425830112,1781953840000,-500.0,0.00020486,2]
[425830123,1781953840000,-288.49280492,0.0002058,2]
[425830114,1781953840000,-500.0,0.00020486,2]
[425830122,1781953840000,-150.0,0.0002058,2]
[425830135,1781953840000,-158.0,0.00021,2]
[425830124,1781953840000,-151.0,0.00020596,2]
[425830126,1781953840000,-298.020608,0.00020683,2]
[425830127,1781953840000,-151.0,0.00020706,2]
[425830129,1781953840000,-151.0,0.00020816,2]
[425830128,1781953840000,-151.0,0.00020761,2]
[425830134,1781953840000,-316.517853,0.00020984,7]
[425830133,1781953840000,-151.0,0.00020981,2]
[425830132,1781953840000,-151.0,0.00020926,2]
[425830136,1781953840000,-151.0,0.00021,2]
[425830130,1781953840000,-151.0,0.00020871,2]
[425830131,1781953840000,-504.0,0.00020923,2]
[425830108,1781953840000,-500.0,0.00020486,2]
[425830125,1781953840000,-151.0,0.00020651,2]
[425830110,1781953840000,-500.0,0.00020486,2]
[425830082,1781953840000,-152.0,0.00020486,2]
[425830109,1781953840000,-152.0,0.00020486,2]
[425830081,1781953840000,-151.0,0.00020486,2]
[425830088,1781953840000,-500.0,0.00020486,2]
[425830083,1781953840000,-500.0,0.00020486,2]
[425830085,1781953840000,-151.0,0.00020486,2]
[425830087,1781953840000,-500.0,0.00020486,2]
[425830084,1781953840000,-500.0,0.00020486,2]
[425830086,1781953840000,-152.0,0.00020486,2]
[425830092,1781953840000,-500.0,0.00020486,2]
[425830089,1781953840000,-152.0,0.00020486,2]
[425830091,1781953840000,-500.0,0.00020486,2]
[425830090,1781953840000,-151.0,0.00020486,2]
[425830093,1781953840000,-152.0,0.00020486,2]
[425830111,1781953840000,-151.0,0.00020486,2]
[425830094,1781953840000,-151.0,0.00020486,2]
[425830095,1781953840000,-500.0,0.00020486,2]
[425830098,1781953840000,-151.0,0.00020486,2]
[425830096,1781953840000,-500.0,0.00020486,2]
[425830097,1781953840000,-152.0,0.00020486,2]
[425830101,1781953840000,-152.0,0.00020486,2]
[425830103,1781953840000,-500.0,0.00020486,2]
[425830100,1781953840000,-500.0,0.00020486,2]
[425830102,1781953840000,-151.0,0.00020486,2]
[425830104,1781953840000,-500.0,0.00020486,2]
[425830105,1781953840000,-152.0,0.00020486,2]
[425830107,1781953840000,-500.0,0.00020486,2]
[425830106,1781953840000,-151.0,0.00020486,2]
[425830099,1781953840000,-500.0,0.00020486,2]
[425830137,1781953840000,-420.0,0.00021,2]
[425830138,1781953840000,-30838.5611198,0.00021031,2]
[425830141,1781953840000,-151.0,0.00021034,2]
[425830171,1781953840000,-150.0,0.00021918,2]
[425830172,1781953840000,-150.0,0.00021918,2]
[425830173,1781953840000,-150.0,0.00021918,2]
[425830175,1781953840000,-150.0,0.00021918,2]
[425830176,1781953840000,-150.0,0.00021918,2]
[425830182,1781953840000,-150.0,0.00021918,2]
[425830178,1781953840000,-150.0,0.00021918,2]
[425830177,1781953840000,-150.0,0.00021918,2]
[425830180,1781953840000,-150.0,0.00021918,2]
[425830183,1781953840000,-150.0,0.00021918,2]
[425830179,1781953840000,-150.0,0.00021918,2]
[425830181,1781953840000,-150.0,0.00021918,2]
[425830185,1781953840000,-150.0,0.00021918,2]
[425830184,1781953840000,-150.0,0.00021918,2]
[425830186,1781953840000,-150.0,0.00021918,2]
[425830187,1781953840000,-318.011416,0.0002194,7]
[425830188,1781953840000,-500.0,0.00021955,2]
[425830193,1781953840000,-158.0,0.00022,2]